bitfinex-derivatives/quotes_ETHF0:USTF0_20250426
["timestamp","ask_amount","ask_price","bid_price","bid_amount"]
[1745644184951,2.71318,1791.3,1791.2,1.6047]
[1745644185344,1.1161,1791.2,1791.1,1.6341]
[1745644185545,1.11616,1791.1,1790.9,2.77336]
[1745644185751,1.11616,1791.1,1791.0,1.6571]
[1745644187945,2.81076,1791.1,1791.0,1.6571]
[1745644192246,1.6946,1791.1,1790.9,1.668]
[1745644192547,3.51442,1791.0,1790.9,1.668]
[1745644192746,3.51442,1791.0,1790.9,3.2863]
[1745644194656,3.51442,1791.0,1790.9,4.0288]
[1745644196053,2.3982,1791.0,1790.9,4.0288]
[1745644196448,3.51442,1791.0,1790.9,4.0288]
[1745644197847,1.11621,1791.1,1790.9,5.14508]
[1745644198056,1.11621,1791.1,1791.0,1.7087]
[1745644198759,2.86041,1791.1,1791.0,1.7087]
[1745644199955,1.11622,1791.0,1790.9,0.7425]
[1745644200155,2.75722,1791.0,1790.9,0.7425]
[1745644200656,10.96502,1791.0,1790.9,0.7425]
[1745644200858,9.57802,1791.0,1790.9,0.7425]
[1745644201057,9.66507225,1791.0,1790.9,0.7425]
[1745644201457,9.6650699,1791.0,1790.9,0.7425]
[1745644202056,9.57802,1791.0,1790.9,0.7425]
[1745644202360,9.66506556,1791.0,1790.9,0.7425]
[1745644202958,9.66507247,1791.0,1790.9,0.7425]
[1745644203757,1.1165,1790.6,1790.4,3.2078]
[1745644204063,1.1165,1790.6,1790.5,2.455]
[1745644204755,2.86974,1790.7,1790.5,2.455]
[1745644204951,2.86974,1790.7,1790.6,1.6135]
[1745644205157,2.86974,1790.7,1790.6,2.4341]
[1745644205562,1.11644,1790.7,1790.6,2.4341]
[1745644205759,4.0138,1790.8,1790.6,3.55055]
[1745644205964,4.32415,1790.8,1790.7,1.6095]
[1745644209265,3.2078,1790.8,1790.7,1.6095]
[1745644209464,4.32415,1790.8,1790.7,1.6095]
[1745644211061,4.32415,1790.8,1790.5,1.95801]
[1745644211062,3.2078,1790.8,1790.5,0.8415]
[1745644211267,1.11647,1790.6,1790.5,0.8415]
[1745644211465,1.11647,1790.6,1790.5,2.5356]
[1745644212169,1.11645,1790.7,1790.5,2.5356]
[1745644212367,1.1164,1790.8,1790.6,3.60106]
[1745644212568,1.1164,1790.8,1790.7,1.618]
[1745644212960,1.11635,1790.8,1790.7,1.618]
[1745644217164,2.79315,1790.8,1790.7,1.618]
[1745644218075,1.11641,1790.7,1790.6,3.2078]
[1745644218370,2.71161,1790.7,1790.6,3.2078]
[1745644223065,2.71161,1790.7,1790.6,4.9593]
[1745644224774,1.11638,1790.8,1790.6,4.9593]
[1745644224970,1.11638,1790.8,1790.7,2.4224]
[1745644225169,2.79119,1790.6,1790.0,3.2078]
[1745644225372,1.11672,1790.2,1790.1,3.2993]
[1745644226176,1.1167,1790.3,1790.1,3.2993]
[1745644226475,1.1167,1790.3,1790.2,1.5832]
[1745644226776,2.73834,1790.4,1790.2,1.5832]
[1745644226980,1.91137,1790.5,1790.2,2.6999]
[1745644227283,1.91137,1790.5,1790.2,5.9077]
[1745644227475,1.11659,1790.4,1790.3,1.7295]
[1745644227676,1.11655,1790.5,1790.3,2.84615]
[1745644227877,1.11655,1790.5,1790.4,0.8194]
[1745644228075,1.11655,1790.5,1790.4,3.3879]
[1745644228376,4.72546,1790.7,1790.4,3.3879]
[1745644228573,4.72546,1790.7,1790.5,1.7295]
[1745644229381,1.11647,1790.6,1790.5,1.7295]
[1745644229574,4.72547,1790.7,1790.5,1.7295]
[1745644229978,4.72545,1790.7,1790.5,1.7295]
[1745644230480,1.11647,1790.6,1790.5,1.7295]
[1745644232177,3.609,1790.7,1790.5,1.7295]
[1745644232375,1.11647,1790.6,1790.5,1.7295]
[1745644232576,3.609,1790.7,1790.5,1.7295]
[1745644232776,1.11647,1790.6,1790.5,1.7295]
[1745644232980,1.11653,1790.5,1790.4,4.0468]
[1745644233182,1.11661,1790.4,1790.3,1.6665]
[1745644233578,1.11666,1790.3,1790.2,0.8392]
[1745644233879,2.75616,1790.3,1790.2,0.8392]
[1745644234988,2.75616,1790.3,1790.2,1.6745]
[1745644235179,1.11666,1790.3,1790.2,1.6745]
[1745644235485,1.11666,1790.3,1790.2,6.5488]
[1745644235874,1.11666,1790.3,1790.2,3.341]
[1745644236277,2.71556,1790.3,1790.2,3.341]
[1745644238880,1.5989,1790.3,1790.2,3.341]
[1745644239387,2.71556,1790.3,1790.2,3.341]
[1745644241076,2.71556,1790.3,1790.2,2.5018]
[1745644246287,1.97452,1790.4,1790.2,6.82628]
[1745644246491,1.11658,1790.5,1790.3,2.70974]
[1745644246691,1.11658,1790.5,1790.4,2.4285]
[1745644246995,3.2078,1790.6,1790.5,1.11653]
[1745644247188,3.2078,1790.6,1790.5,2.411]
[1745644248791,1.11647,1790.6,1790.5,5.6188]
[1745644249092,3.57717,1790.6,1790.5,2.411]
[1745644250593,1.11653,1790.5,1790.4,0.8354]
[1745644250894,5.96203,1790.5,1790.4,2.5245]
[1745644251087,5.96203,1790.5,1790.4,1.6891]
[1745644251289,1.11659,1790.4,1790.3,0.8404]
[1745644251586,2.74099,1790.4,1790.3,0.8404]
[1745644252593,1.11666,1790.3,1790.2,1.7192]
[1745644252800,2.74106,1790.3,1790.2,2.5641]
[1745644253997,1.6244,1790.3,1790.2,2.5641]
[1745644254295,2.74106,1790.3,1790.2,2.5641]
[1745644259194,13.50281,1790.6,1790.2,2.5641]
[1745644259195,1.11665,1790.4,1790.2,3.68081]
[1745644259395,1.11665,1790.4,1790.3,1.5945]
[1745644261200,2.74938,1790.5,1790.3,1.5945]
[1745644261503,2.74938,1790.5,1790.4,0.8726]
[1745644262107,2.74938,1790.5,1790.4,2.6111]
[1745644263499,11.8687,1790.8,1790.4,7.6111]
[1745644263500,1.1164,1790.8,1790.4,7.6111]
[1745644263803,1.6492,1790.9,1790.6,1.11645]
[1745644264004,2.76553,1790.9,1790.7,2.4702]
[1745644264299,14.3081,1791.1,1790.7,2.4702]
[1745644264300,7.6451,1791.1,1790.8,2.76064]
[1745644264603,4.4373,1791.1,1790.9,1.6443]
[1745644264808,5.55351,1791.1,1790.9,1.6443]
[1745644265905,4.4373,1791.1,1790.9,1.6443]
[1745644266406,1.93948,1791.1,1790.9,2.76056]
[1745644266609,2.76532,1791.2,1790.9,1.6443]
[1745644266814,2.76532,1791.2,1791.0,1.7423]
[1745644267307,2.76532,1791.2,1791.1,0.8402]
[1745644269113,0.8757,1791.3,1791.1,0.8402]
[1745644269318,2.528,1791.3,1791.2,1.7423]
[1745644269513,2.528,1791.3,1791.2,2.8584]
[1745644269717,3.613,1791.4,1791.2,1.7423]
[1745644269917,3.613,1791.4,1791.3,1.6335]
[1745644270117,5.2353,1791.4,1791.3,1.6335]
[1745644270325,1.6223,1791.4,1791.3,1.6335]
[1745644271221,2.73827,1791.4,1791.3,1.6335]
[1745644271815,1.11608,1791.3,1791.1,1.6416]
[1745644272025,5.87,1791.8,1791.3,2.79009]
[1745644272324,4.8301,1791.9,1791.8,1.11572]
[1745644272626,3.2078,1791.9,1791.8,1.11572]
[1745644272817,2.73424,1792.1,1791.9,1.11565]
[1745644273017,2.73424,1792.1,1792.0,1.7055]
[1745644274826,1.6187,1792.1,1792.0,1.7055]
[1745644276326,1.6187,1792.1,1791.8,1.95]
[1745644276532,2.73428,1792.1,1791.8,3.6157]
[1745644276720,2.73425,1792.1,1791.8,3.61568]
[1745644276922,1.7218,1792.0,1791.9,2.78136]
[1745644277226,1.7218,1792.0,1791.9,1.6657]
[1745644278731,1.7218,1792.0,1791.9,2.78136]
[1745644278926,2.8374,1792.0,1791.9,1.6657]
[1745644280326,1.7218,1792.0,1791.9,2.78136]
[1745644280831,1.7218,1792.0,1791.9,1.6657]
[1745644281725,2.8374,1792.0,1791.9,1.6657]
[1745644282933,1.11566,1791.9,1791.8,0.8343]
[1745644283119,1.6806,1791.9,1791.8,0.8343]
[1745644283326,2.79626,1791.9,1791.8,0.8343]
[1745644289137,2.79626,1791.9,1791.8,1.95002]
[1745644289436,1.6806,1791.9,1791.8,1.95002]
[1745644290533,1.6806,1791.9,1791.6,3.2078]
[1745644290737,2.79632,1791.9,1791.7,3.71797]
[1745644291331,2.79632,1791.9,1791.8,1.6745]
[1745644292342,1.6806,1791.9,1791.6,3.2078]
[1745644292637,3.2078,1792.1,1791.7,1.11578]
[1745644292638,2.5753,1791.8,1791.7,1.11578]
[1745644292839,1.1157,1791.9,1791.7,1.11578]
[1745644293035,2.5753,1792.0,1791.4,3.2078]
[1745644293339,1.11582,1791.7,1791.5,1.11591]
[1745644293541,1.11582,1791.7,1791.5,2.79041]
[1745644294439,2.81388,1791.8,1791.6,1.6583]
[1745644295040,1.11591,1791.6,1791.3,1.11601]
[1745644295342,2.78363,1791.7,1791.4,1.11597]
[1745644295544,2.4822,1791.6,1791.4,2.77427]
[1745644295737,2.4822,1791.6,1791.5,1.6583]
[1745644296340,2.4822,1791.6,1791.5,2.77421]
[1745644296537,1.6678,1791.8,1791.5,2.77421]
[1745644296742,0.8144,1791.8,1791.6,3.63565]
[1745644296945,4.3235,1791.9,1791.7,3.66778]
[1745644297141,4.3235,1791.9,1791.8,1.7445]
[1745644297940,5.9876,1791.9,1791.8,1.7445]
[1745644299149,2.7798,1791.9,1791.8,1.7445]
[1745644301849,1.11578,1791.7,1791.6,0.8615]
[1745644302248,1.11585,1791.6,1791.5,2.5634]
[1745644302550,2.84735,1791.6,1791.5,3.3883]
[1745644303044,1.11599,1791.4,1791.2,3.625]
[1745644303252,1.11599,1791.4,1791.3,2.46]
[1745644306751,1.11599,1791.4,1791.2,3.625]
[1745644306952,1.7144,1791.5,1791.2,6.2038]
[1745644307154,2.83035,1791.5,1791.3,1.7499]
[1745644307652,1.7144,1791.5,1791.3,1.7499]
[1745644308141,1.11597,1791.4,1791.3,1.7499]
[1745644310340,3.2078,1791.6,1791.3,1.7499]
[1745644310545,3.2078,1791.6,1791.4,1.11593]
[1745644310747,4.74181,1791.7,1791.5,1.7574]
[1745644310945,4.74181,1791.7,1791.6,0.8788]
[1745644311548,6.45431,1791.7,1791.6,0.8788]
[1745644313645,1.7125,1791.7,1791.6,0.8788]
[1745644313849,4.32357,1791.8,1791.6,0.8788]
[1745644314151,6.07937,1791.8,1791.6,2.5476]
[1745644314551,6.07937,1791.8,1791.7,1.6688]
[1745644315755,1.94889,1791.9,1791.7,1.6688]
[1745644316154,5.15669,1791.9,1791.7,1.6688]
[1745644316957,4.041,1791.9,1791.7,2.78458]
[1745644317151,4.041,1791.9,1791.8,1.11572]
[1745644317346,4.041,1791.9,1791.8,1.6389]
[1745644317557,5.15666,1791.9,1791.8,1.6389]
[1745644318254,4.32346,1791.9,1791.8,1.6389]
[1745644318455,4.32346,1791.9,1791.8,2.4612]
[1745644320754,4.32346,1791.9,1791.8,1.6389]
[1745644320957,6.00916,1791.9,1791.8,1.6389]
[1745644322763,1.11577,1791.8,1791.6,1.7011]
[1745644322960,1.11578,1791.7,1791.6,3.3284]
[1745644323358,2.74138,1791.7,1791.6,3.3284]
[1745644325962,1.11578,1791.7,1791.6,3.3284]
[1745644326866,3.53796,1791.8,1791.6,4.44425]
[1745644327062,3.2078,1791.9,1791.7,1.725]
[1745644327265,0.8064,1792.0,1791.8,1.1157]
[1745644327565,6.06868,1792.1,1791.9,2.5124]
[1745644327767,6.06868,1792.1,1792.0,2.4522]
[1745644328255,4.9531,1792.1,1791.7,3.2078]
[1745644328565,1.11569,1791.9,1791.8,2.4753]
[1745644328964,2.86094,1792.0,1791.8,2.4753]
[1745644329163,2.86094,1792.0,1791.9,1.6447]
[1745644334468,1.11572,1791.8,1791.7,3.2372]
[1745644334770,1.11572,1791.8,1791.7,3.2078]
[1745644335164,2.74852,1791.8,1791.7,3.2078]
[1745644335468,2.74852,1791.8,1791.7,4.9124]
[1745644337363,2.74852,1791.8,1791.7,3.2078]
[1745644337574,2.74852,1791.8,1791.5,0.0294]
[1745644337575,1.11585,1791.6,1791.5,0.0294]
[1745644337966,1.11597,1791.5,1791.3,2.4951]
[1745644338265,1.1159,1791.6,1791.3,3.61112]
[1745644338568,3.52511,1791.7,1791.4,6.00322]
[1745644338768,3.52511,1791.7,1791.5,2.5079]
[1745644338965,6.98577,1791.8,1791.6,1.6795]
[1745644339169,6.98577,1791.8,1791.7,0.8156]
[1745644339569,8.69687,1791.8,1791.7,0.8156]
[1745644341872,5.87,1791.8,1791.7,1.93138]
[1745644342070,2.82671,1792.0,1791.8,1.11572]
[1745644342276,2.82671,1792.0,1791.8,1.98412]
[1745644342471,2.82671,1792.0,1791.9,1.6357]
[1745644347673,3.2078,1792.1,1791.9,1.6357]
[1745644348180,6.06246,1792.1,1792.0,0.8623]
[1745644350072,4.9469,1792.1,1792.0,0.8623]
[1745644350680,6.06244,1792.1,1792.0,0.8623]
[1745644350884,6.06244,1792.1,1792.0,2.5583]
[1745644351085,4.9469,1792.1,1792.0,2.5583]
[1745644351279,6.06244,1792.1,1792.0,2.5583]
[1745644351871,4.9469,1792.1,1792.0,2.5583]
[1745644352278,3.2078,1792.1,1792.0,2.5583]
[1745644352680,3.2078,1792.1,1792.0,3.6739]
[1745644352881,4.32334,1792.1,1792.0,2.5583]
[1745644353285,3.2078,1792.1,1792.0,3.6739]
[1745644354483,1.94958,1792.2,1792.0,3.6739]
[1745644354688,1.94958,1792.2,1792.1,2.4923]
[1745644356083,0.8341,1792.2,1792.1,2.4923]
[1745644356787,1.94957,1792.2,1792.1,2.4923]
[1745644358384,1.11535,1792.4,1792.1,3.6078]
[1745644358584,1.11535,1792.4,1792.2,1.6634]
[1745644359083,1.11541,1792.3,1792.0,4.32336]
[1745644359385,2.4956,1792.2,1792.0,1.11556]
[1745644359585,2.4956,1792.2,1792.1,2.77894]
[1745644359788,0.8432,1792.2,1792.1,2.77894]
[1745644360385,2.76784,1792.3,1792.1,2.77894]
[1745644360586,2.76784,1792.3,1792.2,1.6634]
[1745644362787,1.6524,1792.3,1792.2,2.77887]
[1745644363785,1.95857,1792.4,1792.2,1.6634]
[1745644363986,1.95857,1792.4,1792.3,1.7125]
[1745644364176,3.56897,1792.4,1792.3,1.7125]
[1745644367788,3.56897,1792.4,1792.3,2.5714]
[1745644367988,1.11519,1792.7,1792.4,1.11533]
[1745644368190,1.11519,1792.7,1792.4,2.77211]
[1745644368495,1.11518,1792.7,1792.5,1.11527]
[1745644368791,1.11518,1792.7,1792.5,2.77207]
[1745644368991,1.11518,1792.7,1792.5,1.6568]
[1745644369193,2.77358,1792.7,1792.6,1.6568]
[1745644373891,0.8329,1792.8,1792.6,2.772]
[1745644374097,6.40468,1792.9,1792.6,3.5877]
[1745644374284,6.40468,1792.9,1792.7,1.6759]
[1745644374786,6.40468,1792.9,1792.8,0.8522]
[1745644376090,2.78768,1792.9,1792.8,2.5638]
[1745644376601,1.11516,1792.7,1792.6,0.8157]
[1745644376793,1.6823,1792.8,1792.5,3.6453]
[1745644377094,1.11512,1792.8,1792.6,3.68421]
[1745644377283,1.11512,1792.8,1792.7,1.7116]
[1745644377789,1.11508,1792.9,1792.7,1.7116]
[1745644377989,4.32283,1793.0,1792.7,2.82675]
[1745644378393,4.32283,1793.0,1792.8,2.5301]
[1745644378594,4.32283,1793.0,1792.9,1.7116]
[1745644378799,4.32283,1793.0,1792.9,2.569]
[1745644379000,3.2078,1793.0,1792.9,2.569]
[1745644380892,4.32278,1793.0,1792.9,2.569]
[1745644381892,2.79726,1793.1,1792.9,2.569]
[1745644382801,1.11498,1793.0,1792.9,2.569]
[1745644383100,2.83778,1793.0,1792.9,2.569]
[1745644384103,1.7228,1793.0,1792.9,2.569]
[1745644384694,2.83778,1793.0,1792.9,2.569]
[1745644386297,1.11512,1792.8,1792.6,3.2078]
[1745644386498,1.11512,1792.8,1792.7,2.574]
[1745644386893,3.53019,1792.9,1792.7,3.68916]
[1745644387092,3.53019,1792.9,1792.8,1.7496]
[1745644389496,1.1151,1792.8,1792.7,0.8244]
[1745644389695,2.7969,1792.8,1792.7,0.8244]
[1745644390204,1.6818,1792.8,1792.7,2.4428]
[1745644390396,1.11498,1793.0,1792.8,1.1151]
[1745644390595,1.11498,1793.0,1792.9,1.6184]
[1745644390799,1.11498,1793.0,1792.9,2.4406]
[1745644393200,2.73838,1793.0,1792.9,2.4406]
[1745644393407,2.73838,1793.0,1792.9,1.6184]
[1745644394609,1.1151,1792.8,1792.7,1.6457]
[1745644394810,3.55957,1792.9,1792.7,1.6457]
[1745644395202,3.55957,1792.9,1792.7,2.76085]
[1745644395402,3.55957,1792.9,1792.8,1.748]
[1745644395602,1.6402,1792.9,1792.8,1.748]
[1745644397899,2.75524,1792.9,1792.8,1.748]
[1745644398506,12.63573,1792.9,1792.5,3.2078]
[1745644398806,12.63573,1792.9,1792.1,3.605]
[1745644398807,1.11529,1792.5,1792.4,1.7385]
[1745644399009,1.11535,1792.4,1792.3,0.8674]
[1745644399313,2.69925,1792.4,1792.3,0.8674]
[1745644399808,1.5839,1792.4,1791.9,3.2078]
[1745644400013,1.5839,1792.4,1791.8,7.0166]
[1745644400014,3.2971,1792.3,1791.8,7.0166]
[1745644400216,4.8889,1792.2,1791.8,5.2781]
[1745644400511,2.82863,1792.3,1792.0,1.11558]
[1745644400816,3.3943,1792.3,1792.1,2.6113]
[1745644401113,3.66101,1792.3,1792.2,1.7439]
[1745644401306,1.11547,1792.2,1792.1,1.6618]
[1745644401507,2.79657,1792.2,1792.1,0.8674]
[1745644402313,2.79657,1792.2,1792.0,1.7439]
[1745644402512,1.6811,1792.1,1792.0,1.7439]
[1745644402917,1.1156,1792.0,1791.9,1.6037]
[1745644403214,1.1156,1792.0,1791.9,3.3476]
[1745644403419,2.79668,1792.1,1791.9,3.3476]
[1745644404114,2.79668,1792.1,1792.0,1.728]
[1745644404918,1.6811,1792.1,1792.0,1.728]
[1745644405418,1.97995,1792.3,1792.0,2.84356]
[1745644405619,1.11548,1792.2,1792.0,1.728]
[1745644405817,1.11548,1792.2,1792.1,1.728]
[1745644406018,2.86188,1792.2,1792.1,1.728]
[1745644409513,1.11548,1792.2,1792.1,1.728]
[1745644410422,1.1156,1792.0,1791.9,4.8115]
[1745644410624,1.1156,1792.0,1791.9,6.5345]
[1745644410923,1.11558,1792.1,1791.9,6.5345]
[1745644411220,1.11558,1792.1,1792.0,1.723]
[1745644411417,2.81071,1792.2,1792.0,1.723]
[1745644411618,1.11554,1792.1,1792.0,1.723]
[1745644413221,2.81069,1792.2,1792.0,2.83856]
[1745644413624,2.81069,1792.2,1792.1,1.6655]
[1745644413822,1.11549,1792.2,1792.1,1.6655]
[1745644414519,1.97995,1792.3,1792.1,1.6655]
[1745644414726,0.8645,1792.3,1792.1,1.6655]
[1745644414918,0.8645,1792.3,1792.2,1.11547]
[1745644415117,0.8645,1792.3,1792.2,1.96987]
[1745644415924,0.8645,1792.3,1792.2,2.83047]
[1745644416918,3.2078,1792.4,1792.3,1.11541]
[1745644417122,3.2078,1792.4,1792.3,2.70941]
[1745644417719,4.32315,1792.4,1792.3,2.70941]
[1745644418424,1.11535,1792.4,1792.3,1.594]
[1745644418816,1.11535,1792.4,1792.3,2.70941]
[1745644419021,6.35373,1792.5,1792.3,2.70941]
[1745644419219,5.87,1792.9,1792.4,3.2078]
[1745644419525,3.68847,1792.9,1792.7,1.11511]
[1745644420022,3.68847,1792.9,1792.8,1.5896]
[1745644422520,1.11521,1792.7,1792.5,1.6704]
[1745644422716,1.11521,1792.7,1792.5,3.2857]
[1745644423123,1.11521,1792.7,1792.6,1.6153]
[1745644424230,2.71884,1792.8,1792.6,1.6153]
[1745644424624,1.6234,1792.7,1792.6,1.6153]
[1745644424831,1.6234,1792.7,1792.6,2.73052]
[1745644425130,5.18408,1792.9,1792.6,2.73052]
[1745644425322,6.80748,1792.9,1792.7,2.72235]
[1745644425632,6.80748,1792.9,1792.8,1.6072]
[1745644426028,6.80748,1792.9,1792.8,2.4128]
[1745644426422,1.11513,1792.8,1792.6,1.11522]
[1745644426622,5.18409,1792.9,1792.6,3.52802]
[1745644426819,1.1151,1792.8,1792.6,3.52802]
[1745644427026,2.7385,1792.8,1792.7,1.6072]
[1745644427229,1.6234,1792.8,1792.7,1.6072]
[1745644429132,5.18408,1792.9,1792.7,2.72236]
[1745644429328,4.069,1792.9,1792.8,1.1151]
[1745644429529,3.2078,1792.9,1792.8,3.5376]
[1745644430826,4.32284,1792.9,1792.8,2.4225]
[1745644431727,3.2078,1792.9,1792.8,2.4225]
[1745644432030,3.2078,1792.9,1792.8,3.5376]
[1745644432229,2.69759,1793.0,1792.8,3.5376]
[1745644432429,2.69759,1793.0,1792.9,1.5941]
[1745644432629,2.69759,1793.0,1792.9,2.3889]
[1745644434127,1.5826,1793.0,1792.9,2.3889]
[1745644434526,2.69758,1793.0,1792.9,2.3889]
[1745644434729,7.92875,1793.1,1792.9,3.50393]
[1745644434929,9.53155,1793.1,1792.9,2.3889]
[1745644435925,8.4166,1793.1,1792.9,3.50391]
[1745644436126,8.4166,1793.1,1793.0,1.7182]
[1745644436326,9.53153,1793.1,1793.0,1.7182]
[1745644441731,11.20392,1793.1,1792.5,4.32306]
[1745644441938,1.11518,1792.7,1792.5,5.12347]
[1745644442139,0.7923,1792.6,1792.5,4.0082]
[1745644442335,2.5353,1792.6,1792.5,5.6544]
[1745644442734,3.65052,1792.6,1792.5,5.6544]
[1745644444335,3.65052,1792.6,1792.5,3.2078]
[1745644444835,3.65052,1792.6,1792.3,7.57267]
[1745644445033,2.73469,1792.5,1792.3,7.57267]
[1745644447840,2.73469,1792.5,1792.4,1.6725]
[1745644453344,1.6194,1792.5,1792.4,2.78785]
[1745644453544,1.90756,1792.6,1792.4,2.78785]
[1745644453740,1.90756,1792.6,1792.5,1.6572]
[1745644453953,3.61616,1792.6,1792.5,1.6572]
[1745644457455,1.11529,1792.5,1792.3,5.97427]
[1745644457658,2.81449,1792.5,1792.4,1.593]
[1745644459058,1.6992,1792.5,1792.4,1.593]
[1745644459958,2.81449,1792.5,1792.4,1.593]
[1745644460857,1.11529,1792.5,1792.4,1.593]
[1745644463256,1.11535,1792.4,1792.3,1.6511]
[1745644463455,2.72565,1792.4,1792.3,1.6511]
[1745644463658,2.72565,1792.4,1792.3,3.4004]
[1745644464465,1.11541,1792.3,1792.2,3.6196]
[1745644464661,3.68621,1792.3,1792.2,1.5826]
[1745644464863,1.1156,1792.0,1791.9,4.8429]
[1745644465363,1.11557,1792.1,1791.9,1.6351]
[1745644466265,2.85577,1792.1,1792.0,1.5826]
[1745644467461,1.7402,1792.1,1792.0,1.5826]
[1745644468167,1.11551,1792.2,1792.0,1.5826]
[1745644468367,2.82071,1792.2,1792.0,1.5826]
[1745644469667,1.11554,1792.1,1792.0,1.5826]
[1745644483277,1.11554,1792.1,1791.9,4.0215]
[1745644483581,3.6445,1792.0,1791.9,4.0215]
[1745644483782,3.6445,1792.0,1791.9,5.7631]
[1745644484978,2.5289,1792.0,1791.9,5.7631]
[1745644485180,3.64443,1792.2,1791.9,6.87872]
[1745644485387,3.64443,1792.2,1792.0,2.6049]
[1745644485575,3.64443,1792.2,1792.1,1.612]
[1745644488486,1.11544,1792.3,1792.1,2.72754]
[1745644488782,1.11544,1792.3,1792.1,1.612]
[1745644488983,1.11544,1792.3,1792.2,2.4222]
[1745644489184,4.3232,1792.4,1792.2,3.53766]
[1745644489385,3.2078,1792.4,1792.3,3.53181]
[1745644490281,6.8138,1792.6,1792.4,1.11535]
[1745644490479,7.92902,1792.6,1792.5,1.5814]
[1745644490678,4.32302,1792.6,1792.5,2.419]
[1745644496290,1.11522,1792.6,1792.5,2.419]
[1745644496482,6.0364,1792.7,1792.5,2.419]
[1745644496681,6.0364,1792.7,1792.6,1.6381]
[1745644497387,4.9212,1792.7,1792.6,1.6381]
[1745644497791,3.2078,1792.7,1792.6,1.6381]
[1745644497976,3.66594,1792.8,1792.6,1.6381]
[1745644497977,2.5508,1792.8,1792.6,1.6381]
[1745644498182,3.606,1792.9,1792.8,1.1151]
[1745644498985,3.606,1792.9,1792.8,1.9664]
[1745644499185,6.01819,1793.0,1792.8,1.9664]
[1745644499386,2.81039,1793.0,1792.9,1.6603]
[1745644500092,1.92235,1793.1,1792.9,2.77534]
[1745644500292,0.8074,1793.1,1793.0,1.11498]
[1745644500487,1.96326,1793.4,1793.1,1.11491]
[1745644500792,1.11479,1793.3,1793.2,2.5116]
[1745644501587,2.80729,1793.3,1793.2,2.5116]
[1745644503586,4.0563,1793.4,1793.3,1.11479]
[1745644503587,3.2078,1793.4,1793.3,1.11479]
[1745644503786,3.2078,1793.4,1793.3,2.5706]
[1745644504493,3.2078,1793.4,1793.3,3.68539]
[1745644504998,4.32244,1793.6,1793.3,8.68537]
[1745644505192,6.92884,1793.6,1793.4,1.5885]
[1745644505589,3.2078,1793.6,1793.4,2.70321]
[1745644505892,4.3224,1793.6,1793.5,0.8768]
[1745644506091,4.3224,1793.6,1793.5,2.4653]
[1745644506291,3.2078,1793.6,1793.5,2.4653]
[1745644506491,4.3224,1793.6,1793.5,2.4653]
[1745644506995,3.2078,1793.6,1793.5,3.57996]
[1745644507894,3.2078,1793.6,1793.5,2.4653]
[1745644508082,3.2078,1793.6,1793.5,3.57996]
[1745644508294,2.86338,1793.8,1793.6,1.1146]
[1745644508593,2.86338,1793.8,1793.7,0.8141]
[1745644509091,1.11448,1793.8,1793.7,0.8141]
[1745644509290,3.72185,1793.9,1793.7,0.8141]
[1745644509594,3.72185,1793.9,1793.8,1.6916]
[1745644509781,2.6074,1793.9,1793.8,2.5065]
[1745644509988,3.72182,1793.9,1793.8,2.5065]
[1745644510189,1.11439,1794.0,1793.8,3.62098]
[1745644510388,3.64964,1794.1,1793.9,1.6948]
[1745644511397,1.11435,1794.0,1793.9,1.6948]
[1745644511898,2.82965,1794.0,1793.9,1.6948]
[1745644512501,1.7153,1794.0,1793.9,1.6948]
[1745644513297,2.82965,1794.0,1793.9,1.6948]
[1745644513598,1.7153,1794.0,1793.9,1.6948]
[1745644513799,2.82965,1794.0,1793.9,1.6948]
[1745644515305,1.7153,1794.0,1793.9,2.80922]
[1745644515514,1.93432,1794.1,1793.9,2.80922]
[1745644515710,3.54422,1794.1,1794.0,1.7521]
[1745644516306,2.4299,1794.1,1794.0,1.7521]
[1745644516506,3.54419,1794.1,1794.0,1.7521]
[1745644517308,1.11442,1793.9,1793.8,0.8149]
[1745644517915,1.11442,1793.9,1793.8,2.5477]
[1745644519009,2.71697,1794.0,1793.8,2.5477]
[1745644519315,1.6026,1794.0,1793.9,2.76912]
[1745644519516,2.71695,1794.0,1793.9,2.76912]
[1745644520316,2.71695,1794.0,1793.9,1.6547]
[1745644521019,2.71695,1794.0,1793.9,2.76912]
[1745644521215,1.93432,1794.1,1793.9,2.76912]
[1745644521417,1.93432,1794.1,1794.0,1.6547]
[1745644521818,3.54762,1794.1,1794.0,1.6547]
[1745644524019,2.4333,1794.1,1794.0,2.76905]
[1745644524418,3.54759,1794.1,1794.0,1.6547]
[1745644524719,2.4333,1794.1,1794.0,2.76905]
[1745644525515,3.54759,1794.1,1794.0,1.6547]
[1745644526119,2.4333,1794.1,1794.0,2.76905]
[1745644526419,2.4333,1794.1,1794.0,1.6547]
[1745644526618,3.54759,1794.1,1794.0,1.6547]
[1745644527021,3.54759,1794.1,1794.0,2.76905]
[1745644527221,4.32207,1794.2,1794.0,2.76905]
[1745644527521,4.32207,1794.2,1794.1,1.6862]
[1745644527721,4.32207,1794.2,1794.1,2.5629]
[1745644527918,5.93327,1794.2,1794.1,2.5629]
[1745644530321,1.11432,1794.1,1793.9,1.11439]
[1745644530523,2.86062,1794.1,1793.9,2.75969]